bitfinex/quotes_ETHUSD_20220111
["timestamp","ask_amount","ask_price","bid_price","bid_amount"]
[1641942360823,0.447,3239.2,3238.7,0.01193689]
[1641942361030,0.447,3239.2,3238.1,3.94792665]
[1641942361031,4.5,3239.1,3238.1,3.94792665]
[1641942361270,0.77236,3238.5,3237.7,1.54493828]
[1641942361467,5.585,3238.1,3237.7,1.54493828]
[1641942361675,0.447,3238.0,3237.8,0.0073895]
[1641942361870,0.447,3238.0,3237.8,1.55232778]
[1641942361871,1.63766466,3237.9,3237.8,1.55232778]
[1641942362065,2.7,3237.8,3237.7,5.2639022]
[1641942362269,3.147,3237.8,3237.7,5.2639022]
[1641942362467,5.51954,3237.8,3237.7,5.2639022]
[1641942362666,0.77254,3237.7,3237.5,2.31274193]
[1641942362868,0.447,3237.6,3237.5,2.31274193]
[1641942363269,0.447,3237.6,3237.3,1.27565896]
[1641942363471,0.77245,3237.5,3237.3,1.27565896]
[1641942363672,0.447,3237.4,3237.3,1.27565896]
[1641942364072,0.447,3237.4,3237.3,1.27850108]
[1641942365334,0.447,3237.4,3237.3,3.91145772]
[1641942365733,3.06317989,3237.9,3237.4,4.6]
[1641942365734,0.30732535,3237.9,3237.4,4.6]
[1641942366038,8.12966,3238.6,3237.4,4.6]
[1641942366039,2.86669417,3238.9,3238.8,1.21642311]
[1641942366236,1.27199928,3239.2,3238.9,0.05727988]
[1641942366434,0.447,3239.3,3238.9,0.05727988]
[1641942366835,0.00795792,3239.2,3238.8,2.30362041]
[1641942367235,0.0073895,3239.1,3238.9,3.1]
[1641942367635,0.447,3239.7,3238.9,3.1]
[1641942367636,0.00682108,3239.0,3238.9,3.1]
[1641942367841,2.108e-05,3239.0,3238.9,3.37639994]
[1641942368038,2.108e-05,3239.0,3238.9,19.69045286]
[1641942368039,0.00682108,3239.0,3238.9,19.69045286]
[1641942369094,0.00682108,3239.0,3238.9,22.32192573]
[1641942369494,0.00682108,3239.0,3238.9,22.62192573]
[1641942369703,0.00682108,3239.0,3238.9,23.62192573]
[1641942370296,0.00682108,3239.0,3238.9,22.32192573]
[1641942370902,2.108e-05,3239.0,3238.9,22.69909573]
[1641942371099,0.447,3241.4,3239.8,0.77148]
[1641942371300,0.447,3241.4,3239.9,3.53454873]
[1641942371501,0.00400004,3240.9,3240.0,3.8921]
[1641942371706,0.570482,3241.8,3240.7,4.6]
[1641942371707,0.123482,3241.8,3240.7,4.6]
[1641942372003,0.00723318,3242.1,3242.0,1.30098701]
[1641942372820,0.00723318,3242.1,3241.9,0.2876]
[1641942373024,0.00723318,3242.1,3240.9,6.2383]
[1641942373025,2.00975548,3242.1,3240.9,6.2383]
[1641942373219,0.00625266,3242.0,3240.9,6.2383]
[1641942373618,0.00568424,3241.9,3240.9,6.2383]
[1641942374019,0.00511581,3241.8,3240.9,6.2383]
[1641942374426,2.93776721,3242.2,3241.8,1.24485955]
[1641942374624,1.0,3242.1,3241.4,1.40742144]
[1641942374926,1.0,3242.1,3241.5,0.00170527]
[1641942374927,1.00170527,3242.1,3241.5,0.00170527]
[1641942375722,1.00170527,3242.1,3241.7,1.23808889]
[1641942376122,0.00170527,3242.1,3241.7,1.23808889]
[1641942376367,1.00170527,3242.1,3241.7,1.23808889]
[1641942376571,0.00170527,3242.1,3241.7,1.23808889]
[1641942376770,0.00170527,3242.1,3241.9,1.29337028]
[1641942377068,0.00170527,3242.1,3241.7,1.23808889]
[1641942377476,0.00170527,3242.1,3241.7,3.1]
[1641942378073,0.39870527,3242.2,3241.7,3.1]
[1641942378372,1.44330692,3242.0,3241.8,0.00170527]
[1641942378586,0.39870527,3242.2,3241.8,0.00170527]
[1641942380035,0.04808927,3242.3,3241.8,0.00170527]
[1641942380424,0.04808927,3242.3,3242.1,1.51185604]
[1641942380624,0.04808927,3242.3,3242.2,1.53755847]
[1641942380829,0.04808927,3242.3,3241.8,0.00170527]
[1641942381031,0.41922612,3242.3,3241.8,0.00170527]
[1641942381229,3.87851639,3242.2,3241.8,0.00170527]
[1641942381528,3.87851639,3242.2,3241.7,3.1]
[1641942381529,4.97,3242.1,3241.7,3.1]
[1641942381729,0.77161,3241.9,3241.7,3.1]
[1641942381928,3.9916,3241.8,3241.7,3.1]
[1641942382130,8.41255843,3241.8,3241.7,3.1]
[1641942382637,0.77165,3241.4,3240.8,0.0771]
[1641942382830,0.7716358,3241.2,3240.8,0.0771]
[1641942383030,0.7716358,3241.2,3240.9,0.00511581]
[1641942383228,0.77165,3241.1,3240.9,0.00511581]
[1641942383629,1.1206176,3241.0,3240.9,0.00511581]
[1641942383868,0.37,3241.4,3240.9,0.00511581]
[1641942384069,1.0,3241.6,3240.9,0.00511581]
[1641942384268,1.0,3241.6,3240.8,0.00568423]
[1641942384472,0.3,3241.6,3240.8,0.00568423]
[1641942384876,0.3,3241.7,3240.8,0.00568423]
[1641942385073,1.35154002,3241.5,3240.8,0.00568423]
[1641942385475,1.35154002,3241.5,3241.2,1.26308502]
[1641942385676,0.37,3241.8,3241.3,1.5489698]
[1641942385881,0.30113685,3242.0,3241.4,0.01297851]
[1641942385882,0.00113685,3242.0,3241.4,0.01297851]
[1641942386076,0.00113685,3242.0,3241.4,0.0152522]
[1641942386276,0.00113685,3242.0,3241.5,0.00170527]
[1641942387080,0.00113685,3242.0,3241.8,2.7645833]
[1641942387280,0.00113685,3242.0,3241.8,1.30092687]
[1641942387548,0.00113685,3242.0,3241.5,0.00170527]
[1641942387951,0.37,3241.9,3241.5,0.00170527]
[1641942388140,0.37,3241.9,3241.3,3.1]
[1641942388141,0.67,3241.9,3241.4,0.00227369]
[1641942388343,1.47032534,3241.8,3241.4,0.00227369]
[1641942388546,1.94512404,3241.7,3241.4,0.00227369]
[1641942388742,2.80792404,3241.7,3241.4,0.00227369]
[1641942388943,3.80792404,3241.7,3241.4,0.00227369]
[1641942389145,1.54309,3241.6,3241.4,0.00227369]
[1641942389344,1.02742,3241.6,3241.4,0.00227369]
[1641942389544,2.02742,3241.6,3241.4,0.00227369]
[1641942391483,3.75,3241.4,3241.3,3.1]
[1641942391680,4.05,3241.4,3241.3,3.1]
[1641942391877,5.35,3241.4,3241.3,3.1]
[1641942392279,5.05,3241.4,3241.3,3.1]
[1641942392481,2.84332,3241.4,3241.3,3.1]
[1641942392881,3.39922,3241.4,3241.3,3.1]
[1641942393681,2.2259,3241.4,3241.3,3.1]
[1641942394282,0.6259,3241.4,3241.3,3.1]
[1641942394782,0.9259,3241.4,3241.3,3.1]
[1641942395224,2.16915,3241.4,3241.3,3.1]
[1641942395426,0.6259,3241.4,3241.3,3.1]
[1641942395926,0.2559,3241.4,3241.3,3.1]
[1641942396531,0.2559,3241.9,3241.3,4.43190615]
[1641942396729,0.2559,3241.9,3241.4,1.16314513]
[1641942397028,0.00227369,3241.8,3241.4,1.16314513]
[1641942397330,0.00170527,3241.7,3241.4,1.16314513]
[1641942397729,0.00113685,3241.6,3241.4,1.16314513]
[1641942398133,0.00227369,3241.8,3241.3,3.1]
[1641942398531,0.00170527,3241.7,3241.3,3.1]
[1641942398978,0.00113685,3241.6,3241.3,3.1]
[1641942399383,0.77144,3241.7,3241.3,3.1]
[1641942399581,0.2559,3241.5,3241.3,3.1]
[1641942400182,1.29113433,3241.4,3241.3,3.1]
[1641942400584,0.7715,3241.4,3241.3,3.1]
[1641942400987,2.05059124,3241.4,3241.3,3.1]
[1641942402723,3.90649124,3241.4,3241.3,3.1]
[1641942402924,2.30649124,3241.4,3241.3,3.1]
[1641942403533,3.30649124,3241.4,3241.3,3.1]
[1641942403728,2.30649124,3241.4,3241.3,3.1]
[1641942404137,4.5,3241.3,3238.9,3.05181454]
[1641942404333,0.77179,3240.6,3239.2,3.6492]
[1641942404531,0.296,3240.4,3239.9,0.00852635]
[1641942404731,0.37,3240.3,3239.9,0.00852635]
[1641942405130,1.10333221,3240.2,3239.9,0.00852635]
[1641942405329,0.37,3240.1,3239.9,0.00852635]
[1641942405531,0.67,3240.1,3239.9,0.00852635]
[1641942405733,0.9259,3240.1,3239.9,0.00852635]
[1641942406140,0.6259,3240.1,3239.9,0.00852635]
[1641942406615,0.6259,3240.1,3239.9,1.38625624]
[1641942406814,0.6259,3240.1,3240.0,4.75795793]
[1641942406815,0.2559,3240.1,3240.0,4.75795793]
[1641942407614,0.2559,3240.1,3240.0,6.13866177]
[1641942408513,0.2559,3240.1,3240.0,8.95297739]
[1641942408721,0.7715678,3241.4,3240.0,8.95297739]
[1641942408722,0.37,3241.5,3240.1,4.75]
[1641942408914,0.37,3241.5,3240.2,3.50915836]
[1641942409113,0.67,3241.5,3240.2,10.06577944]
[1641942409314,0.37,3241.5,3240.3,0.00625266]
[1641942409517,0.00113685,3241.6,3240.7,0.78394177]
[1641942409715,0.00113685,3241.6,3240.9,1.45760459]
[1641942409915,0.00113685,3241.6,3241.0,7.51827947]
[1641942410128,0.00113685,3241.6,3241.0,7.52055316]
[1641942410327,0.37,3242.8,3241.2,4.75]
[1641942410328,0.36922612,3242.8,3241.2,4.75]
[1641942410631,0.36922612,3242.8,3242.2,1.45831243]
[1641942410632,1.50000949,3242.6,3242.2,1.45831243]
[1641942411028,0.77634581,3242.5,3241.5,3.1398145]
[1641942411235,0.77634581,3242.5,3241.3,0.00170527]
[1641942411434,1.10318925,3242.2,3241.3,0.00170527]
[1641942411626,1.10318925,3242.2,3241.2,0.0022737]
[1641942411830,0.00284211,3242.1,3241.2,0.0022737]
[1641942412029,0.771418,3242.0,3241.2,0.0022737]
[1641942412230,1.27274422,3241.7,3241.2,0.0022737]
[1641942412828,1.27274422,3241.7,3241.1,0.00284212]
[1641942413427,1.27274422,3241.7,3241.2,1.4477208]
[1641942413629,2.04416422,3241.7,3241.2,1.4477208]
[1641942413885,2.04416422,3241.7,3241.3,0.00170527]
[1641942414482,0.77142,3241.7,3241.3,0.00170527]
[1641942415482,0.00170527,3241.9,3241.4,1.41072349]
[1641942415882,0.00113684,3241.8,3241.4,1.41072349]
[1641942416086,1.31233987,3242.1,3241.4,2.1]
[1641942416486,0.00113685,3242.0,3241.5,0.00170527]
[1641942416884,1.54390645,3242.0,3241.5,0.00170527]
[1641942417084,1.56250838,3241.5,3241.2,1.36445597]
[1641942417528,0.77141,3241.9,3241.3,0.00284211]
[1641942417734,0.77143,3241.6,3241.3,0.00284211]
[1641942417933,1.54390645,3242.0,3241.3,0.00284211]
[1641942418532,2.54390645,3242.0,3241.3,0.00284211]
[1641942418734,1.25155288,3241.5,3241.3,0.00284211]
[1641942418934,0.77142,3241.6,3241.3,0.00284211]
[1641942419144,0.00113685,3242.0,3241.3,2.76805982]
[1641942419536,0.00113685,3242.0,3241.4,0.00227369]
[1641942420136,0.00113685,3242.0,3241.8,1.39815334]
[1641942420541,0.00113685,3242.0,3241.6,2.76167965]
[1641942420840,0.00113685,3242.0,3241.5,1.48529546]
[1641942421272,0.00113685,3242.0,3241.6,0.00113684]
[1641942421476,0.72246685,3242.1,3241.6,0.00113684]
[1641942421683,0.72246685,3242.1,3241.7,1.42726714]
[1641942422076,0.72246685,3242.1,3241.8,0.00113685]
[1641942423079,1.79382685,3242.1,3241.8,0.00113685]
[1641942423679,2.79382685,3242.1,3241.8,0.00113685]
[1641942423883,1.49382685,3242.1,3241.8,0.00113685]
[1641942424682,0.7714214,3242.0,3241.8,0.00113685]
[1641942425127,0.7714214,3242.0,3241.3,0.00397896]
[1641942425428,0.77142,3241.7,3241.3,0.00397896]
[1641942425633,2.15931087,3241.7,3241.4,1.42513975]
[1641942426031,2.15931087,3241.7,3241.5,0.00284212]
[1641942427235,2.15931087,3241.7,3241.3,0.00397896]
[1641942427435,0.77142,3241.7,3241.3,0.00397896]
[1641942428803,0.77142,3241.7,3241.5,1.46548397]
[1641942429004,0.7714214,3242.0,3241.5,1.46548397]
[1641942429005,1.5427,3242.2,3241.5,1.46548397]
[1641942429203,0.37,3242.2,3241.6,0.00227369]
[1641942430005,1.53817118,3242.1,3241.6,0.00227369]
[1641942432115,2.30947118,3242.1,3241.6,0.00227369]
[1641942433336,0.77137,3241.9,3241.6,0.00227369]
[1641942433740,3.45195108,3241.8,3241.3,0.00397896]
[1641942433937,0.37,3241.8,3241.3,0.00397896]
[1641942434136,4.2848198,3241.8,3241.3,0.00397896]
[1641942434337,4.22396228,3241.8,3241.3,0.00397896]
[1641942434538,1.54328,3241.6,3241.3,0.00397896]
[1641942434743,1.14164,3241.5,3241.3,0.00397896]
[1641942434940,1.10742,3241.5,3241.3,0.00397896]
[1641942435139,2.10742,3241.5,3241.3,0.00397896]
[1641942435741,1.44580139,3241.4,3241.3,0.00397896]
[1641942435941,2.11580139,3241.4,3241.3,0.00397896]
[1641942436143,2.11580139,3241.4,3241.2,3.1]
[1641942436144,3.45,3241.3,3241.2,3.1]
[1641942436394,0.77176,3241.0,3239.6,2.3005]
[1641942436594,4.74919,3241.2,3239.7,3.6903]
[1641942436595,4.24020097,3240.9,3239.7,3.6903]
[1641942436792,0.37,3240.8,3239.8,0.00852635]
[1641942436992,1.38938026,3240.6,3239.8,0.00852635]
[1641942437196,0.77186,3240.3,3239.8,0.00852635]
[1641942437398,0.7718735,3240.1,3239.8,0.00852635]
[1641942437595,1.33763801,3239.9,3239.8,2.63955535]
[1641942437897,2.68566,3240.6,3239.8,2.63955535]
[1641942438096,0.37,3240.6,3239.8,5.73955535]
[1641942438401,0.37,3240.6,3239.9,0.00795793]
[1641942438596,1.1415913,3241.2,3239.9,0.00795793]
[1641942438799,1.14152,3241.2,3240.8,1.09478912]
[1641942438997,0.37,3241.2,3240.8,1.09478912]
[1641942439197,1.16784,3241.4,3240.9,0.0022737]
[1641942439398,0.46784,3241.4,3240.9,0.0022737]
[1641942439596,0.30084087,3241.5,3240.9,0.0022737]
[1641942439797,0.3,3241.4,3240.9,0.0022737]
[1641942440035,1.47503607,3241.3,3240.9,0.0022737]
[1641942441739,0.30084087,3241.5,3240.9,0.0022737]
[1641942442550,0.30084087,3241.5,3240.9,2.63250236]
[1641942442941,0.30084087,3241.5,3241.0,0.00170527]
[1641942443140,0.30084087,3241.5,3241.2,1.23162943]
[1641942443348,0.77146,3241.4,3241.0,0.00170527]
[1641942443546,0.77146,3241.4,3241.3,1.12415572]
[1641942443776,0.30084087,3241.5,3241.3,1.12415572]
[1641942444778,0.30084087,3241.5,3241.4,1.36160666]
[1641942444981,0.30084087,3241.5,3241.0,0.00170527]
[1641942445188,0.77151,3241.4,3241.0,0.00170527]
[1641942445385,0.77151,3241.4,3240.9,0.0022737]
[1641942446181,1.95308908,3241.3,3241.1,1.25192001]
[1641942446581,1.95308908,3241.3,3240.9,1.40326208]
[1641942446582,1.95308908,3241.3,3240.9,0.0022737]
[1641942447081,0.77151,3241.3,3240.8,0.00284212]
[1641942447532,0.30197771,3241.5,3241.1,1.1188789]
[1641942447731,0.30197771,3241.5,3240.8,0.00284212]
[1641942448130,1.12081828,3241.2,3240.8,1.36843197]
[1641942448532,1.12081828,3241.2,3240.9,0.0022737]
[1641942448932,1.89233828,3241.2,3240.9,1.11154072]
[1641942449331,1.89233828,3241.2,3241.0,0.00170527]
[1641942449735,1.89233828,3241.2,3240.9,2.63256604]
[1641942449936,1.89233828,3241.2,3241.0,0.00170527]
[1641942450136,0.77152,3241.2,3241.0,0.00170527]
[1641942450340,1.54297,3241.4,3241.0,0.00170527]
[1641942450536,0.3,3241.3,3241.1,1.22988234]
[1641942450736,1.07147,3241.4,3241.1,1.22988234]
[1641942451038,0.3,3241.4,3241.1,1.22988234]
[1641942451279,0.30197771,3241.5,3241.1,1.22988234]
[1641942451881,0.30197771,3241.5,3241.3,1.35199748]
[1641942452286,0.30197771,3241.5,3241.1,1.22988234]
[1641942452287,1.07346771,3241.5,3241.1,1.22988234]
[1641942452483,0.3,3241.4,3241.1,1.22988234]
[1641942452886,0.3,3241.4,3241.0,0.00170527]
[1641942453083,0.60197771,3241.5,3241.0,0.00170527]
[1641942453282,0.60197771,3241.5,3240.9,0.0022737]
[1641942453283,0.30197771,3241.5,3240.9,0.0022737]
[1641942453483,0.7715,3241.3,3241.2,1.17427172]
[1641942453885,1.0715,3241.3,3241.2,1.17427172]
[1641942454084,1.0715,3241.3,3240.9,0.0022737]
[1641942454884,1.0715,3241.3,3240.9,2.63267539]
[1641942455331,1.0715,3241.3,3241.0,0.00170527]
[1641942455931,2.47354986,3241.3,3241.0,0.00170527]
[1641942456332,1.0715,3241.3,3241.0,0.00170527]
[1641942458235,1.46907702,3241.1,3241.0,0.00170527]
[1641942458431,0.3,3241.3,3241.0,0.00170527]
[1641942458875,1.37341771,3241.5,3241.0,0.00170527]
[1641942459280,1.37341771,3241.5,3241.0,2.63201991]
[1641942459680,1.37341771,3241.5,3241.1,0.00113685]
[1641942459883,0.77149,3241.3,3241.1,0.00113685]
[1641942460281,1.07149,3241.3,3241.1,0.00113685]
[1641942461884,0.3,3241.3,3241.1,0.00113685]
[1641942462086,1.37341771,3241.5,3241.2,1.40434431]
[1641942462728,2.66818667,3241.5,3241.2,1.40434431]
[1641942463331,1.37341771,3241.5,3241.2,1.40434431]
[1641942465130,2.14490771,3241.5,3241.2,1.40434431]
[1641942465530,2.14490771,3241.5,3241.1,0.00113685]
[1641942465730,0.77154,3241.3,3241.1,0.00113685]
[1641942466132,0.3,3241.3,3240.9,0.0022737]
[1641942466379,1.07157,3241.3,3240.9,0.0022737]
[1641942466580,0.3,3241.2,3241.1,1.43057332]
[1641942466784,0.3,3241.2,3241.1,2.55057087]
[1641942466983,0.3,3241.2,3241.1,2.55170772]
[1641942467382,0.3,3241.2,3241.1,1.1211344]
[1641942467683,0.3,3241.2,3241.1,0.00113685]
[1641942467883,0.77152,3241.2,3241.1,0.00113685]
[1641942468182,1.07152,3241.2,3240.9,0.0022737]
[1641942468381,1.07152,3241.2,3240.9,1.50398928]
[1641942468785,1.16827388,3241.1,3241.0,0.00170527]
[1641942469384,1.16827388,3241.1,3240.9,0.0022737]
[1641942469786,0.77156,3241.0,3240.9,0.0022737]
[1641942470433,1.07156,3241.0,3240.9,0.0022737]
[1641942470633,4.92001759,3241.0,3240.9,0.0022737]
[1641942470832,5.00000064,3241.0,3240.9,0.0022737]
[1641942471032,6.00000064,3241.0,3240.9,0.0022737]
[1641942471237,2.89654305,3241.0,3240.9,0.0022737]
[1641942471437,2.81656,3241.0,3240.9,0.0022737]
[1641942474982,1.21656,3241.0,3240.9,0.0022737]
[1641942475985,0.805767,3241.3,3240.9,0.0022737]
[1641942475986,0.77152,3241.2,3240.9,0.0022737]
[1641942476184,0.805767,3241.3,3241.0,1.14025898]
[1641942476585,0.805767,3241.3,3241.1,0.00113685]
[1641942476786,0.805767,3241.3,3241.2,1.38562427]
[1641942478833,0.805767,3241.3,3241.1,0.00113685]
[1641942480038,0.77151,3241.2,3241.1,0.00113685]
[1641942480439,1.07151,3241.2,3241.1,0.00113685]
[1641942480637,1.07151,3241.2,3241.0,0.00170527]
[1641942480638,0.77151,3241.2,3241.0,0.00170527]
[1641942480836,0.77151,3241.2,3240.9,0.0022737]
[1641942481484,0.77151,3241.2,3241.0,1.14558611]
[1641942481888,0.77151,3241.2,3241.1,0.00113685]
[1641942482289,0.805767,3241.3,3241.2,1.44588744]
[1641942485334,0.77156,3241.2,3241.1,0.00113685]
[1641942485737,1.21656,3241.2,3240.9,0.0022737]
[1641942486437,1.21656,3241.2,3240.9,2.63276351]
[1641942486438,2.21656,3241.2,3240.9,2.63276351]
[1641942486635,2.81656,3241.2,3240.9,2.63276351]
[1641942486839,3.58821,3241.2,3241.0,0.00170527]
[1641942487035,5.9032122,3241.2,3241.0,0.00170527]
[1641942487235,4.3598908,3241.2,3241.0,0.00170527]
[1641942487740,4.3598908,3241.2,3240.9,0.0022737]
[1641942488135,0.77158,3241.1,3240.9,0.0022737]
[1641942488336,1.29536072,3241.0,3240.9,0.0022737]
[1641942488535,1.59536072,3241.0,3240.9,0.0022737]
[1641942491989,2.89536072,3241.0,3240.9,0.0022737]
[1641942492187,1.6,3241.0,3240.9,0.0022737]
[1641942492392,0.77158,3241.1,3240.9,0.0022737]
[1641942492660,0.805767,3241.3,3240.9,0.0022737]
[1641942493450,0.805767,3241.3,3241.2,1.51374588]
[1641942500338,0.771587,3241.2,3240.9,0.0022737]
[1641942500540,0.77164,3241.1,3240.9,0.0022737]
[1641942500938,2.07164,3241.1,3240.9,0.0022737]
[1641942501337,1.24999309,3241.0,3240.9,0.0022737]
[1641942501937,2.07497614,3241.0,3240.9,0.0022737]
[1641942502143,2.07497614,3241.0,3240.2,3.94606428]
[1641942502144,4.7,3240.9,3240.2,3.94606428]
[1641942502346,0.77196,3240.5,3240.2,3.94606428]
[1641942502541,0.77196,3240.5,3240.3,0.00341054]
[1641942502542,5.095,3240.4,3240.3,0.00341054]
[1641942502741,1.14814861,3240.2,3239.7,1.5363146]
[1641942502940,1.5439821,3240.0,3239.7,1.5363146]
[1641942503139,1.045,3239.9,3239.8,0.00284211]
[1641942503541,2.045,3239.9,3239.8,0.00284211]
[1641942503809,2.817,3239.9,3239.3,3.72514211]
[1641942504000,1.5440456,3239.7,3239.3,3.72514211]
[1641942504298,2.59408856,3239.6,3239.4,0.0022737]
[1641942504902,1.0,3239.5,3239.3,0.00284212]
[1641942505097,1.5440565,3239.5,3239.3,0.00284212]
[1641942505499,1.5440565,3239.5,3239.4,2.63144707]
[1641942505500,0.77201,3239.5,3239.4,2.63144707]
[1641942506704,0.77201,3239.5,3239.3,3.96080405]
[1641942507302,0.36715559,3239.4,3239.3,3.96080405]
[1641942507535,0.36715559,3239.4,3239.3,2.63428919]
[1641942507736,0.36715559,3239.4,3239.3,0.00284212]
[1641942511284,0.36715559,3239.4,3239.3,2.45284212]
[1641942511487,4.73454849,3240.5,3239.3,2.45284212]
[1641942511488,1.25112897,3240.4,3239.4,0.0542209]
[1641942511688,0.80612897,3240.4,3239.4,0.0542209]
[1641942511886,0.00170527,3240.1,3239.6,0.03875396]
[1641942512288,0.00113684,3240.0,3239.7,1.50182876]
[1641942512593,0.00284211,3240.3,3239.8,1.39585737]
[1641942512788,0.00284211,3240.3,3239.8,1.36970212]
[1641942513088,0.00227369,3240.2,3239.8,1.36970212]
[1641942513589,0.80612897,3240.4,3239.8,1.36970212]
[1641942513590,0.00284211,3240.3,3239.8,1.36970212]
[1641942513788,0.00284211,3240.3,3239.9,2.92844829]
[1641942513989,0.00227369,3240.2,3239.9,2.92844829]
[1641942514493,0.00284211,3240.3,3239.9,2.92844829]
[1641942514890,0.00227369,3240.2,3239.9,2.92844829]
[1641942515338,0.00284211,3240.3,3239.9,2.92844829]
[1641942515738,0.00227369,3240.2,3239.9,2.92844829]
[1641942516143,0.80612897,3240.4,3239.9,2.92844829]
[1641942516144,0.00284211,3240.3,3239.9,2.92844829]
[1641942516540,0.00227369,3240.2,3239.9,2.92844829]
[1641942516942,0.00284211,3240.3,3239.9,2.92844829]
[1641942517342,0.00227369,3240.2,3239.9,2.92844829]
[1641942517541,0.00227369,3240.2,3239.8,4.17892781]
[1641942517745,0.00284211,3240.3,3239.8,4.17892781]
[1641942518141,0.00227369,3240.2,3239.8,1.36970212]
[1641942518341,0.00227369,3240.2,3239.9,2.83207988]
[1641942518541,0.00284211,3240.3,3239.8,4.17892781]
[1641942518780,0.00284211,3240.3,3239.8,4.18511843]
[1641942519080,0.00227369,3240.2,3239.8,4.18511843]
[1641942519579,0.00284211,3240.3,3239.8,4.18511843]
[1641942519981,0.00227369,3240.2,3239.8,4.18511843]
[1641942520384,0.00284211,3240.3,3239.8,4.18511843]
[1641942520779,0.00227369,3240.2,3239.8,4.18511843]
[1641942521183,0.00284211,3240.3,3239.8,4.18511843]
[1641942521585,0.00227369,3240.2,3239.8,4.18511843]
[1641942521787,0.00227369,3240.2,3239.8,1.36970212]
[1641942522004,0.00284211,3240.3,3239.8,1.36970212]
[1641942522385,0.00227369,3240.2,3239.8,1.36970212]
[1641942522830,0.00284211,3240.3,3239.8,1.36970212]
[1641942523234,0.00227369,3240.2,3239.8,1.36970212]
[1641942523636,0.00284211,3240.3,3239.8,1.36970212]
[1641942524035,0.00227369,3240.2,3239.8,1.36970212]
[1641942524238,0.00227369,3240.2,3239.8,4.16782428]
[1641942524434,0.80612897,3240.4,3239.8,4.16782428]
[1641942524435,0.00284211,3240.3,3239.8,4.16782428]
[1641942524636,0.00284211,3240.3,3239.8,10.80282428]
[1641942524836,1.57748203,3241.3,3239.9,7.68568113]
[1641942524837,0.00227369,3240.2,3239.9,7.68568113]
[1641942525036,0.00227369,3240.2,3240.0,3.08526392]
[1641942525234,0.00795792,3241.2,3240.0,3.08526392]
[1641942525435,0.30795792,3241.2,3240.0,3.08526392]
[1641942525640,0.0073895,3241.1,3240.7,1.48102927]
[1641942525835,0.0073895,3241.1,3240.0,3.08526392]
[1641942526137,1.07158,3240.9,3240.0,3.08526392]
[1641942526386,1.07158,3240.9,3240.1,2.63093202]
[1641942526584,0.00568423,3240.8,3240.2,4.24648823]
[1641942526987,1.07158,3240.9,3240.5,1.45986668]
[1641942526988,0.00511581,3240.7,3240.5,1.45986668]
[1641942527389,0.00454738,3240.6,3240.5,1.45986668]
[1641942529390,0.00454738,3240.6,3240.5,4.50181822]
[1641942529596,0.00454738,3240.6,3240.5,5.49795372]
[1641942529792,0.00454738,3240.6,3240.5,4.49795372]
[1641942530053,0.00454738,3240.6,3240.5,23.34930372]
[1641942530443,0.00454738,3240.6,3240.5,24.87770372]
[1641942530644,4.738e-05,3240.6,3240.5,26.39366684]
[1641942530848,4.738e-05,3240.6,3240.5,26.47079684]
[1641942531244,4.738e-05,3240.6,3240.5,25.17079684]
[1641942531444,4.738e-05,3240.6,3240.5,22.0685668]
[1641942531843,4.738e-05,3240.6,3240.5,7.3601615]
[1641942532046,4.738e-05,3240.6,3240.5,9.71681289]
[1641942532646,4.738e-05,3240.6,3240.5,6.5758245]
[1641942533048,4.738e-05,3240.6,3240.5,5.2803298]
[1641942533904,4.738e-05,3240.6,3240.5,2.65]
[1641942534102,4.738e-05,3240.6,3240.5,4.65]
[1641942534904,4.738e-05,3240.6,3240.5,7.28044165]
[1641942535711,4.738e-05,3240.6,3240.5,10.140069]
[1641942536310,4.738e-05,3240.6,3240.5,7.28044165]
[1641942536724,4.738e-05,3240.6,3240.5,10.16372537]
[1641942537133,4.738e-05,3240.6,3240.5,11.17632148]
[1641942537940,4.738e-05,3240.6,3240.5,12.36113757]
[1641942539347,4.738e-05,3240.6,3240.5,30.44113757]
[1641942539548,4.738e-05,3240.6,3240.5,31.04113757]
[1641942539749,4.738e-05,3240.6,3240.5,30.81552148]
[1641942539948,4.738e-05,3240.6,3240.5,30.89265148]
[1641942540349,4.738e-05,3240.6,3240.5,12.81265148]
[1641942540548,4.738e-05,3240.6,3240.5,16.75795456]
[1641942541394,4.738e-05,3240.6,3240.5,12.81265148]
[1641942541591,4.738e-05,3240.6,3240.5,11.85345148]
[1641942541789,4.738e-05,3240.6,3240.5,10.17632148]
[1641942543199,4.738e-05,3240.6,3240.5,28.25632148]
[1641942543691,4.738e-05,3240.6,3240.5,10.17632148]
[1641942544092,4.738e-05,3240.6,3240.5,14.1214385]
[1641942544693,4.738e-05,3240.6,3240.5,14.10884239]
[1641942545141,4.738e-05,3240.6,3240.5,10.16372537]
[1641942545745,4.738e-05,3240.6,3240.5,11.23508537]
[1641942545947,4.738e-05,3240.6,3240.5,12.23508537]
[1641942547046,4.738e-05,3240.6,3240.5,12.31221537]
[1641942549592,4.738e-05,3240.6,3240.5,11.54085537]
[1641942551193,4.738e-05,3240.6,3240.5,12.31220537]
[1641942551798,4.738e-05,3240.6,3240.5,12.61220537]
[1641942552739,4.738e-05,3240.6,3240.5,13.71202629]
[1641942552940,4.738e-05,3240.6,3240.5,16.55732239]
[1641942553549,4.738e-05,3240.6,3240.5,15.78597239]
[1641942553748,4.738e-05,3240.6,3240.5,9.22555867]
[1641942553951,4.738e-05,3240.6,3240.5,6.57555867]
[1641942554749,4.738e-05,3240.6,3240.5,2.63044165]
[1641942555749,4.738e-05,3240.6,3240.5,5.13044165]
[1641942557799,0.77146,3241.4,3240.5,5.13044165]
[1641942558000,0.77146,3241.4,3240.8,1.31347406]
[1641942558200,0.77146,3241.4,3241.3,1.09777367]
[1641942558400,0.77146,3241.4,3240.8,1.31347406]
[1641942558601,0.77605477,3241.4,3240.8,1.31347406]
[1641942559401,0.77605477,3241.4,3241.2,1.42625416]
[1641942559804,0.00459477,3241.4,3241.2,1.42625416]
[1641942561852,0.77604477,3241.4,3241.2,1.42625416]
[1641942567101,0.00459477,3241.4,3241.2,1.42625416]
[1641942568093,0.77604477,3241.4,3241.2,1.42625416]
[1641942570297,0.00459477,3241.4,3241.2,1.42625416]
[1641942571098,0.00459477,3241.4,3241.3,5.33797485]
[1641942571297,0.00459477,3241.4,3241.3,5.38458063]
[1641942571702,0.00459477,3241.4,3241.3,11.09368063]
[1641942572204,0.00459477,3241.4,3241.3,13.72352376]
[1641942574301,0.00459477,3241.4,3241.3,13.80063376]
[1641942574500,0.00459477,3241.4,3241.3,14.80063376]
[1641942577858,0.02137563,3241.4,3241.3,14.80063376]
[1641942578160,0.02137563,3241.4,3241.3,11.62352376]